[Event "ESP-chT 2nd Division 2019"]
[Site "Linares"]
[Date "2019.08.22"]
[Round "5.12"]
[White "Galiana Fernandez, Adrian"]
[Black "Nayhebaver, Martin"]
[Result "1/2-1/2"]
[ECO "A18"]
[WhiteElo "2295"]
[BlackElo "2469"]
[Annotator "ChessBase"]
[PlyCount "107"]
[EventDate "2019.08.19"]
[EventType "team-tourn"]
[EventCountry "ESP"]
[SourceTitle "playchess.com"]
[Source "ChessBase"]
[SourceQuality "1"]
[TimeControl "5400+30"]

1. c4 {[%emt 0:00:00]} e6 {[%emt 0:00:37]} 2. Nc3 {[%emt 0:00:00]} Nf6 {[%emt 0:07:44]} 3. e4 {[%emt 0:00:00]} d5 {[%emt 0:00:39]} 4. e5 {[%emt 0:00:00]} d4 {[%emt 0:00:07]} 5. exf6 {[%emt 0:00:04]} dxc3 {[%emt 0:00:05]} 6. bxc3 {[%emt 0:00:05]} Qxf6 {[%emt 0:00:09]} 7. d4 {[%emt 0:00:05]} b6 {[%emt 0:03:31]} 8. Be2 {[%emt 0:00:05]} Bb7 {[%emt 0:03:29]} 9. Bf3 {[%emt 0:00:11]} Bxf3 {[%emt 0:00:13]} 10. Nxf3 {[%emt 0:00:12]} Bd6 {[%emt 0:01:01]} 11. Qa4+ {[%emt 0:00:16]} c6 {[%emt 0:00:53]} 12. O-O {[%emt 0:08:11]} O-O {[%emt 0:01:40]} 13. Bg5 {[%emt 0:22:36]} Qf5 {[%emt 0:05:55]} 14. Rfe1 {[%emt 0:01:06]} Rc8 {[%emt 0:05:59]} 15. Rad1 {[%emt 0:02:52]} Nd7 {[%emt 0:02:34]} 16. h3 {[%emt 0:04:18]} Rc7 {[%emt 0:15:07]} 17. Bh4 {[%emt 0:03:37]} c5 {[%emt 0:05:23]} 18. d5 {[%emt 0:00:33]} e5 {[%emt 0:01:45]} 19. Nd2 {[%emt 0:02:50]} Nf6 {[%emt 0:18:29]} 20. Bxf6 {[%emt 0:04:13]} Qxf6 {[%emt 0:00:06]} 21. Ne4 {[%emt 0:00:05]} Qg6 {[%emt 0:00:24]} 22. f4 {[%emt 0:00:10]} exf4 {[%emt 0:05:39]} 23. Nxd6 {[%emt 0:05:37]} Qxd6 {[%emt 0:00:03]} 24. Re8+ {[%emt 0:00:05]} Rxe8 {[%emt 0:00:04]} 25. Qxe8+ {[%emt 0:00:05]} Qf8 {[%emt 0:00:05]} 26. d6 {[%emt 0:20:06]} Rc8 {[%emt 0:00:10]} 27. Qe4 {[%emt 0:01:35]} Rd8 {[%emt 0:08:43]} 28. d7 {[%emt 0:05:09]} f6 {[%emt 0:00:07]} 29. Qxf4 {[%emt 0:06:19]} Qe7 {[%emt 0:00:10]} 30. Qc7 {[%emt 0:00:05]} Kf7 {[%emt 0:00:32]} 31. Kf2 {[%emt 0:00:07]} a5 {[%emt 0:01:23]} 32. Rd6 {[%emt 0:03:14]} f5 {[%emt 0:02:22]} 33. Rd5 {[%emt 0:04:32]} g6 {[%emt 0:00:44]} 34. a4 {[%emt 0:01:25]} Qf6 {[%emt 0:04:41]} 35. Rd6 {[%emt 0:00:51]} Qe7 {[%emt 0:00:51]} 36. Qc6 {[%emt 0:01:45]} f4 {[%emt 0:01:42]} 37. Qd5+ {[%emt 0:02:01]} Kg7 {[%emt 0:00:49]} 38. Re6 {[%emt 0:00:43]} Qxd7 {[%emt 0:01:07]} 39. Qe5+ {[%emt 0:00:07]} Kg8 {[%emt 0:00:37]} 40. Rxb6 {[%emt 0:02:55]} Qd2+ {[%emt 0:01:04]} 41. Kg1 {[%emt 0:00:06]} Qe3+ {[%emt 0:02:05]} 42. Qxe3 {[%emt 0:00:02]} fxe3 {[%emt 0:00:02]} 43. Kf1 {[%emt 0:02:07]} Rd3 {[%emt 0:00:19]} 44. Rb5 {[%emt 0:00:36]} Rxc3 {[%emt 0:00:25]} 45. Rxc5 {[%emt 0:00:04]} Rc2 {[%emt 0:00:19]} 46. Rxa5 {[%emt 0:00:16]} Rxc4 {[%emt 0:00:13]} 47. Ke2 {[%emt 0:00:04]} Rc3 {[%emt 0:00:24]} 48. Ra7 {[%emt 0:00:16]} Ra3 {[%emt 0:00:04]} 49. a5 {[%emt 0:00:10]} h5 {[%emt 0:00:16]} 50. h4 {[%emt 0:01:39]} Kf8 {[%emt 0:00:10]} 51. a6 {[%emt 0:00:21]} Kg8 {[%emt 0:00:03]} 52. Kf3 {[%emt 0:00:33]} Kf8 {[%emt 0:00:11]} 53. Ke2 {[%emt 0:00:38]} Kg8 {[%emt 0:00:04]} 54. Kf3 {[%emt 0:00:03]} 1/2-1/2

[Event "ESP-chT 2nd Division 2019"]
[Site "Linares"]
[Date "2019.08.22"]
[Round "5.13"]
[White "Khamrakulov, Ibragim S."]
[Black "Sanchez Dengra, Jose Maria"]
[Result "0-1"]
[ECO "B22"]
[WhiteElo "2429"]
[BlackElo "2216"]
[Annotator "ChessBase"]
[PlyCount "138"]
[EventDate "2019.08.19"]
[EventType "team-tourn"]
[EventCountry "ESP"]
[SourceTitle "playchess.com"]
[Source "ChessBase"]
[SourceQuality "1"]
[TimeControl "5400+30"]

1. e4 {[%emt 0:00:47]} c5 {[%emt 0:00:00]} 2. c3 {[%emt 0:02:24]} Nf6 {[%emt 0:00:15]} 3. e5 {[%emt 0:00:27]} Nd5 {[%emt 0:00:11]} 4. Nf3 {[%emt 0:06:24]} Qc7 {[%emt 0:11:44]} 5. Bc4 {[%emt 0:05:25]} Nb6 {[%emt 0:01:18]} 6. Bb3 {[%emt 0:00:09]} c4 {[%emt 0:00:46]} 7. Bc2 {[%emt 0:00:14]} Nc6 {[%emt 0:00:29]} 8. Qe2 {[%emt 0:00:16]} g5 9. h3 {[%emt 0:00:44]} Bg7 {[%emt 0:02:22]} 10. O-O {[%emt 0:00:08]} Nxe5 {[%emt 0:01:10]} 11. Nxg5 {[%emt 0:00:22]} d5 {[%emt 0:00:55]} 12. a4 {[%emt 0:02:50]} Bd7 {[%emt 0:03:53]} 13. a5 {[%emt 0:09:28]} Nc8 {[%emt 0:00:09]} 14. f4 {[%emt 0:00:10]} Nd3 {[%emt 0:27:28]} 15. Bxd3 {[%emt 0:00:24]} cxd3 {[%emt 0:00:05]} 16. Qxd3 {[%emt 0:00:19]} h6 {[%emt 0:02:42]} 17. Nf3 {[%emt 0:00:42]} Qxf4 {[%emt 0:01:40]} 18. Qxd5 {[%emt 0:01:24]} Bc6 {[%emt 0:03:00]} 19. d4 {[%emt 0:00:46]} Qg3 {[%emt 0:04:50]} 20. Qf5 {[%emt 0:04:16]} Rg8 {[%emt 0:00:26]} 21. Rf2 {[%emt 0:00:14]} Nd6 {[%emt 0:05:53]} 22. Qf4 {[%emt 0:01:17]} Qg6 {[%emt 0:02:22]} 23. Nbd2 {[%emt 0:05:12]} h5 {[%emt 0:02:30]} 24. Nh4 {[%emt 0:21:12]} Qe6 {[%emt 0:04:49]} 25. Nf5 {[%emt 0:08:48]} Nxf5 {[%emt 0:05:39]} 26. Qxf5 {[%emt 0:00:28]} Bxd4 {[%emt 0:05:11]} 27. cxd4 {[%emt 0:00:45]} Rxg2+ {[%emt 0:00:19]} 28. Kf1 {[%emt 0:00:07]} Rxf2+ {[%emt 0:01:12]} 29. Qxf2 {[%emt 0:00:20]} Qxh3+ {[%emt 0:00:05]} 30. Ke1 {[%emt 0:00:09]} Rd8 {[%emt 0:06:18]} 31. Nf1 {[%emt 0:03:22]} Bb5 {[%emt 0:00:02]} 32. Ra3 {[%emt 0:00:47]} Qg4 {[%emt 0:01:44]} 33. Rg3 {[%emt 0:01:16]} Qe4+ {[%emt 0:01:05]} 34. Ne3 {[%emt 0:01:03]} Rxd4 {[%emt 0:01:04]} 35. Rg8+ {[%emt 0:03:35]} Kd7 {[%emt 0:00:01]} 36. Qxf7 {[%emt 0:02:02]} Qh1+ {[%emt 0:00:59]} 37. Kf2 {[%emt 0:04:05]} Qh4+ {[%emt 0:00:02]} 38. Kg2 {[%emt 0:00:44]} Bc6+ {[%emt 0:01:24]} 39. Kg1 {[%emt 0:00:34]} Qh1+ {[%emt 0:01:27]} 40. Kf2 {[%emt 0:00:10]} Qh4+ {[%emt 0:00:04]} 41. Ke2 {[%emt 0:02:28]} Bb5+ {[%emt 0:00:52]} 42. Kf3 {[%emt 0:00:08]} Rf4+ {[%emt 0:01:35]} 43. Qxf4 {[%emt 0:01:07]} Bc6+ {[%emt 0:00:01]} 44. Nd5 {[%emt 0:01:20]} Bxd5+ {[%emt 0:00:02]} 45. Ke3 {[%emt 0:00:58]} Qxf4+ {[%emt 0:01:52]} 46. Kxf4 {[%emt 0:00:08]} Bxg8 {[%emt 0:00:02]} 47. Be3 {[%emt 0:00:10]} a6 {[%emt 0:00:12]} 48. b4 {[%emt 0:03:46]} Be6 {[%emt 0:01:20]} 49. Bf2 {[%emt 0:00:29]} Bg4 {[%emt 0:00:39]} 50. Ke5 {[%emt 0:00:08]} Kc6 {[%emt 0:00:26]} 51. Bh4 {[%emt 0:00:09]} e6 {[%emt 0:00:22]} 52. Be7 {[%emt 0:00:12]} Kb5 {[%emt 0:00:33]} 53. Kd4 {[%emt 0:00:18]} Ka4 {[%emt 0:01:24]} 54. Kc3 {[%emt 0:00:08]} e5 {[%emt 0:00:18]} 55. Kc4 {[%emt 0:00:46]} Bf3 {[%emt 0:00:38]} 56. Kc3 {[%emt 0:01:27]} Kb5 {[%emt 0:00:24]} 57. Bd6 {[%emt 0:01:01]} e4 {[%emt 0:00:11]} 58. Kd4 {[%emt 0:00:06]} h4 {[%emt 0:00:07]} 59. Be7 {[%emt 0:06:51]} h3 {[%emt 0:00:08]} 60. Bd6 {[%emt 0:00:02]} Bg2 {[%emt 0:00:18]} 61. Ke3 {[%emt 0:00:44]} Kc4 {[%emt 0:00:20]} 62. Ke2 {[%emt 0:01:46]} Bh1 {[%emt 0:00:29]} 63. Ke3 {[%emt 0:00:10]} Bf3 {[%emt 0:00:06]} 64. Kd2 {[%emt 0:00:59]} Kd4 {[%emt 0:01:02]} 65. Bf4 {[%emt 0:00:37]} Bg4 {[%emt 0:00:26]} 66. Bd6 {[%emt 0:01:29]} e3+ {[%emt 0:00:12]} 67. Ke1 {[%emt 0:00:08]} Ke4 {[%emt 0:00:09]} 68. Kf1 {[%emt 0:00:55]} Kf3 {[%emt 0:00:07]} 69. Ke1 {[%emt 0:00:36]} Kg2 {[%emt 0:00:23]} 0-1

[Event "ESP-chT 2nd Division 2019"]
[Site "Linares"]
[Date "2019.08.22"]
[Round "5.14"]
[White "Aledo Yanguas, Javier"]
[Black "Soham Das"]
[Result "0-1"]
[ECO "B22"]
[WhiteElo "2023"]
[BlackElo "2339"]
[Annotator "NA"]
[PlyCount "99"]
[EventDate "2019.08.19"]
[EventType "team-tourn"]
[EventCountry "ESP"]
[SourceTitle "playchess.com"]
[Source "ChessBase"]
[SourceQuality "1"]
[TimeControl "5400+30"]

1. e4 {[%emt 0:00:00]} c5 {[%emt 0:00:04]} 2. c3 {[%emt 0:00:00]} d5 {[%emt 0:00:06]} 3. exd5 {[%emt 0:00:02]} Nf6 {[%emt 0:00:09]} 4. d4 {[%emt 0:08:20]} Nxd5 {[%emt 0:02:22]} 5. dxc5 {[%emt 0:07:25]} e6 {[%emt 0:00:23]} 6. b4 {[%emt 0:01:22]} a5 {[%emt 0:06:10]} 7. Qb3 {[%emt 0:08:14]} Nc6 {[%emt 0:20:28]} 8. Bb5 {[%emt 0:05:47]} axb4 {[%emt 0:07:52]} 9. cxb4 {[%emt 0:07:08]} Bd7 {[%emt 0:01:38]} 10. Bxc6 {[%emt 0:04:40]} Bxc6 {[%emt 0:00:04]} 11. Ne2 {[%emt 0:07:39]} Ba4 {[%emt 0:01:41]} 12. Qc4 {[%emt 0:10:58]} Ne3 {[%emt 0:22:30]} 13. fxe3 {[%emt 0:00:20]} Qd1+ {[%emt 0:00:03]} 14. Kf2 {[%emt 0:00:09]} Qxh1 {[%emt 0:00:02]} 15. b5 {[%emt 0:07:32]} Qxh2 {[%emt 0:02:51]} 16. Nbc3 {[%emt 0:03:10]} Bc2 {[%emt 0:02:17]} 17. b6 {[%emt 0:04:21]} Be7 {[%emt 0:03:58]} 18. Nb5 {[%emt 0:08:12]} Qh4+ {[%emt 0:01:11]} 19. Qxh4 {[%emt 0:00:07]} Bxh4+ {[%emt 0:00:01]} 20. g3 {[%emt 0:01:39]} Bf6 {[%emt 0:00:40]} 21. Nd6+ {[%emt 0:02:28]} Kd7 {[%emt 0:06:27]} 22. Nd4 {[%emt 0:00:49]} Bb3 {[%emt 0:00:31]} 23. Nxb7 {[%emt 0:02:40]} Bd5 {[%emt 0:05:53]} 24. Nd6 {[%emt 0:00:14]} Be5 {[%emt 0:00:09]} 25. N6b5 {[%emt 0:03:48]} Ra4 {[%emt 0:04:25]} 26. Bd2 {[%emt 0:02:50]} Rc8 {[%emt 0:02:29]} 27. Nc3 {[%emt 0:01:54]} Rxd4 {[%emt 0:06:24]} 28. exd4 {[%emt 0:00:02]} Bxd4+ {[%emt 0:00:05]} 29. Ke1 {[%emt 0:00:37]} Rxc5 {[%emt 0:00:29]} 30. Rc1 {[%emt 0:01:30]} Bc6 {[%emt 0:00:16]} 31. Ke2 {[%emt 0:00:55]} Re5+ {[%emt 0:00:32]} 32. Kd3 {[%emt 0:00:33]} Bxb6 {[%emt 0:00:02]} 33. Bf4 {[%emt 0:00:33]} Rf5 {[%emt 0:00:11]} 34. Rd1 {[%emt 0:00:30]} g5 {[%emt 0:00:42]} 35. Bc1 {[%emt 0:00:31]} h5 {[%emt 0:00:24]} 36. Be3 {[%emt 0:00:29]} Bc7 {[%emt 0:00:29]} 37. Ke2+ {[%emt 0:00:30]} Kc8 {[%emt 0:00:12]} 38. Rg1 {[%emt 0:00:28]} Be5 {[%emt 0:00:14]} 39. Nb1 {[%emt 0:00:29]} h4 {[%emt 0:00:19]} 40. g4 {[%emt 0:00:33]} Rf3 {[%emt 0:00:15]} 41. Bxg5 {[%emt 0:00:30]} Rh3 {[%emt 0:01:38]} 42. Nd2 {[%emt 0:00:27]} Rh2+ {[%emt 0:00:11]} 43. Ke3 {[%emt 0:00:27]} f6 {[%emt 0:00:45]} 44. Bh6 {[%emt 0:00:30]} h3 {[%emt 0:00:24]} 45. Nf3 {[%emt 0:00:34]} Rc2 {[%emt 0:02:24]} 46. Nxe5 {[%emt 0:00:32]} h2 {[%emt 0:00:10]} 47. Rf1 {[%emt 0:00:30]} fxe5 {[%emt 0:00:09]} 48. Rf8+ {[%emt 0:00:31]} Kd7 {[%emt 0:00:10]} 49. Rf7+ {[%emt 0:00:28]} Ke8 {[%emt 0:00:28]} 50. Rf6 0-1

[Event "ESP-chT 2nd Division 2019"]
[Site "Linares"]
[Date "2019.08.22"]
[Round "5.15"]
[White "Calzetta Ruiz, Monica"]
[Black "Sanchez Dengra, Barbara"]
[Result "1-0"]
[ECO "B12"]
[WhiteElo "2257"]
[BlackElo "1983"]
[Annotator "NA"]
[PlyCount "45"]
[EventDate "2019.08.19"]
[EventType "team-tourn"]
[EventCountry "ESP"]
[SourceTitle "playchess.com"]
[Source "ChessBase"]
[SourceQuality "1"]
[TimeControl "5400+30"]

1. e4 {[%emt 0:00:47]} c6 {[%emt 0:00:00]} 2. d4 {[%emt 0:00:06]} d5 {[%emt 0:00:00]} 3. e5 {[%emt 0:00:06]} c5 {[%emt 0:00:13]} 4. dxc5 {[%emt 0:00:13]} Nc6 {[%emt 0:00:28]} 5. Nf3 {[%emt 0:00:08]} Bg4 {[%emt 0:02:05]} 6. c3 {[%emt 0:01:54]} e6 {[%emt 0:07:03]} 7. Be3 {[%emt 0:01:18]} Bxf3 {[%emt 0:03:01]} 8. Qxf3 {[%emt 0:01:53]} Nxe5 {[%emt 0:01:51]} 9. Bb5+ {[%emt 0:00:27]} Nc6 {[%emt 0:01:27]} 10. O-O {[%emt 0:04:26]} Nf6 {[%emt 0:03:23]} 11. c4 {[%emt 0:02:51]} a6 {[%emt 0:09:03]} 12. Ba4 {[%emt 0:04:58]} Qa5 {[%emt 0:07:20]} 13. Nc3 {[%emt 0:01:31]} O-O-O {[%emt 0:23:12]} 14. cxd5 {[%emt 0:03:52]} Ne5 {[%emt 0:04:41]} 15. Qg3 {[%emt 0:10:43]} Nxd5 {[%emt 0:00:47]} 16. Qxe5 {[%emt 0:08:24]} Nxc3 {[%emt 0:00:21]} 17. bxc3 {[%emt 0:00:15]} Qxa4 {[%emt 0:06:48]} 18. Bf4 {[%emt 0:00:22]} Qc6 {[%emt 0:11:57]} 19. Qb8+ {[%emt 0:00:53]} Kd7 {[%emt 0:00:06]} 20. Rad1+ {[%emt 0:00:07]} Bd6 {[%emt 0:00:28]} 21. Rxd6+ {[%emt 0:02:44]} Ke7 {[%emt 0:00:18]} 22. Rxc6 {[%emt 0:01:54]} Rxb8 {[%emt 0:00:23]} 23. Rb6 {[%emt 0:00:21]} 1-0

[Event "ESP-chT 2nd Division 2019"]
[Site "Linares"]
[Date "2019.08.22"]
[Round "5.16"]
[White "Lopez Mulet, Inigo"]
[Black "Cruz Lledo, Pablo"]
[Result "1-0"]
[ECO "E05"]
[WhiteElo "2397"]
[BlackElo "2445"]
[Annotator "NA"]
[PlyCount "111"]
[EventDate "2019.08.19"]
[EventType "team-tourn"]
[EventCountry "ESP"]
[SourceTitle "playchess.com"]
[Source "ChessBase"]
[SourceQuality "1"]
[TimeControl "5400+30"]

1. d4 {[%emt 0:00:00]} d5 {[%emt 0:00:15]} 2. c4 {[%emt 0:00:00]} e6 {[%emt 0:00:05]} 3. Nf3 {[%emt 0:00:28]} Nf6 {[%emt 0:00:36]} 4. g3 {[%emt 0:00:05]} dxc4 {[%emt 0:00:15]} 5. Bg2 {[%emt 0:00:09]} Be7 {[%emt 0:00:51]} 6. O-O {[%emt 0:02:00]} O-O {[%emt 0:00:18]} 7. Qc2 {[%emt 0:02:00]} a6 {[%emt 0:00:04]} 8. Qxc4 {[%emt 0:00:22]} b5 {[%emt 0:00:05]} 9. Qc2 {[%emt 0:00:05]} Bb7 {[%emt 0:00:02]} 10. Bd2 {[%emt 0:00:36]} Be4 {[%emt 0:00:16]} 11. Qc1 {[%emt 0:00:53]} Bb7 {[%emt 0:00:05]} 12. Rd1 {[%emt 0:05:31]} Nbd7 {[%emt 0:00:52]} 13. Ba5 {[%emt 0:01:48]} Nb6 {[%emt 0:01:20]} 14. Nbd2 {[%emt 0:00:55]} Rc8 {[%emt 0:03:17]} 15. b4 {[%emt 0:05:23]} Bd6 {[%emt 0:13:28]} 16. Qc2 {[%emt 0:16:27]} Qe7 {[%emt 0:00:13]} 17. a3 {[%emt 0:00:09]} Nfd7 {[%emt 0:02:10]} 18. Rac1 {[%emt 0:01:14]} f5 {[%emt 0:01:24]} 19. e3 {[%emt 0:28:11]} Rce8 {[%emt 0:06:46]} 20. Ne1 {[%emt 0:05:18]} Bxg2 {[%emt 0:00:42]} 21. Kxg2 {[%emt 0:00:05]} e5 {[%emt 0:00:42]} 22. dxe5 {[%emt 0:04:57]} Nxe5 {[%emt 0:00:28]} 23. Nd3 {[%emt 0:01:04]} Nec4 {[%emt 0:12:41]} 24. Bxb6 {[%emt 0:01:09]} Nxb6 {[%emt 0:00:09]} 25. Qc6 {[%emt 0:03:30]} Rd8 {[%emt 0:01:37]} 26. Qb7 {[%emt 0:06:31]} Qf7 {[%emt 0:09:57]} 27. Nf3 {[%emt 0:06:15]} Rb8 {[%emt 0:07:54]} 28. Qxa6 {[%emt 0:03:43]} Qe8 {[%emt 0:03:18]} 29. Nd4 {[%emt 0:00:48]} Nc4 {[%emt 0:07:55]} 30. Qc6 {[%emt 0:00:59]} Qxc6+ {[%emt 0:02:14]} 31. Nxc6 {[%emt 0:00:04]} Rb6 {[%emt 0:00:13]} 32. Nd4 {[%emt 0:00:18]} Nxa3 {[%emt 0:00:12]} 33. Nc5 {[%emt 0:00:51]} Rf7 {[%emt 0:04:47]} 34. Ra1 {[%emt 0:00:07]} Nc4 {[%emt 0:00:10]} 35. Ra8+ {[%emt 0:00:34]} Rf8 {[%emt 0:00:16]} 36. Rxf8+ {[%emt 0:00:04]} Bxf8 {[%emt 0:00:11]} 37. Nxf5 {[%emt 0:00:07]} Nd6 {[%emt 0:05:35]} 38. Nd4 {[%emt 0:00:27]} Nb7 {[%emt 0:00:45]} 39. Nd7 {[%emt 0:00:28]} Rd6 {[%emt 0:01:15]} 40. Nxf8 {[%emt 0:00:05]} Kxf8 {[%emt 0:00:21]} 41. Rc1 {[%emt 0:00:05]} c6 {[%emt 0:03:23]} 42. Rxc6 {[%emt 0:00:18]} Rxc6 {[%emt 0:01:25]} 43. Nxc6 {[%emt 0:00:04]} Nd6 {[%emt 0:00:17]} 44. Nd4 {[%emt 0:00:05]} Ke7 {[%emt 0:00:43]} 45. f4 {[%emt 0:00:05]} Nc4 {[%emt 0:02:26]} 46. Kf3 {[%emt 0:00:30]} Nb6 {[%emt 0:02:38]} 47. e4 {[%emt 0:00:57]} Nc4 {[%emt 0:00:02]} 48. Ke2 {[%emt 0:00:15]} Na3 {[%emt 0:01:39]} 49. e5 {[%emt 0:00:20]} h5 {[%emt 0:00:44]} 50. Kd3 {[%emt 0:00:07]} g6 {[%emt 0:00:09]} 51. h3 {[%emt 0:01:14]} Kf7 {[%emt 0:00:20]} 52. Ke4 {[%emt 0:01:18]} Ke7 {[%emt 0:00:27]} 53. g4 {[%emt 0:01:00]} h4 {[%emt 0:00:11]} 54. f5 {[%emt 0:01:06]} gxf5+ {[%emt 0:00:02]} 55. gxf5 {[%emt 0:00:06]} Kd7 {[%emt 0:00:24]} 56. f6 {[%emt 0:00:17]} 1-0

[Event "ESP-chT 2nd Division 2019"]
[Site "Linares"]
[Date "2019.08.22"]
[Round "5.17"]
[White "Garcia Molla, Victor"]
[Black "Carrasco Martinez, Juan M."]
[Result "1/2-1/2"]
[ECO "A05"]
[WhiteElo "2408"]
[BlackElo "2374"]
[Annotator "NA"]
[PlyCount "64"]
[EventDate "2019.08.19"]
[EventType "team-tourn"]
[EventCountry "ESP"]
[SourceTitle "playchess.com"]
[Source "ChessBase"]
[SourceQuality "1"]
[TimeControl "5400+30"]

1. Nf3 {[%emt 0:00:00]} Nf6 {[%emt 0:00:00]} 2. c4 {[%emt 0:00:00]} c5 {[%emt 0:00:24]} 3. Nc3 {[%emt 0:00:27]} d6 {[%emt 0:01:18]} 4. d4 {[%emt 0:02:29]} cxd4 {[%emt 0:00:22]} 5. Nxd4 {[%emt 0:00:10]} b6 {[%emt 0:03:23]} 6. e4 {[%emt 0:03:05]} Bb7 {[%emt 0:00:26]} 7. Bd3 {[%emt 0:02:28]} g6 {[%emt 0:01:22]} 8. O-O {[%emt 0:02:17]} Bg7 {[%emt 0:00:07]} 9. Re1 {[%emt 0:05:27]} O-O {[%emt 0:07:25]} 10. Bg5 {[%emt 0:06:09]} Nbd7 {[%emt 0:05:41]} 11. Qd2 {[%emt 0:02:52]} a6 {[%emt 0:04:09]} 12. Bf1 {[%emt 0:05:25]} Rc8 {[%emt 0:07:02]} 13. Rac1 {[%emt 0:04:25]} Nc5 {[%emt 0:05:02]} 14. f3 {[%emt 0:00:05]} Re8 {[%emt 0:15:27]} 15. Rcd1 {[%emt 0:05:58]} Ncd7 {[%emt 0:06:45]} 16. Nc2 {[%emt 0:04:38]} Qc7 {[%emt 0:04:02]} 17. Kh1 {[%emt 0:04:26]} Ne5 {[%emt 0:02:48]} 18. Ne3 {[%emt 0:00:47]} Qc5 {[%emt 0:01:40]} 19. Bh4 {[%emt 0:06:35]} Bh6 {[%emt 0:03:01]} 20. Bxf6 {[%emt 0:01:56]} exf6 {[%emt 0:00:06]} 21. Qd4 {[%emt 0:10:54]} f5 {[%emt 0:04:32]} 22. Qxc5 {[%emt 0:01:27]} bxc5 {[%emt 0:03:29]} 23. Ned5 {[%emt 0:03:15]} Re6 {[%emt 0:03:09]} 24. exf5 {[%emt 0:00:55]} gxf5 {[%emt 0:00:12]} 25. f4 {[%emt 0:04:10]} Ng4 {[%emt 0:07:17]} 26. Rxe6 {[%emt 0:00:16]} fxe6 {[%emt 0:00:11]} 27. Ne7+ {[%emt 0:00:05]} Kf8 {[%emt 0:00:31]} 28. Nxc8 {[%emt 0:00:11]} Nf2+ {[%emt 0:00:08]} 29. Kg1 {[%emt 0:00:04]} Nxd1 {[%emt 0:00:03]} 30. Nxd6 {[%emt 0:00:23]} Bxf4 {[%emt 0:01:16]} 31. Nxb7 {[%emt 0:02:49]} Be3+ {[%emt 0:00:09]} 32. Kh1 {[%emt 0:00:06]} Nf2+ {[%emt 0:00:04]} 1/2-1/2

[Event "ESP-chT 2nd Division 2019"]
[Site "Linares"]
[Date "2019.08.22"]
[Round "5.18"]
[White "Figuero Toro, Julian Francisco"]
[Black "Barbera Estelles, Rosendo"]
[Result "1-0"]
[ECO "D07"]
[WhiteElo "2268"]
[BlackElo "2176"]
[Annotator "ChessBase"]
[PlyCount "113"]
[EventDate "2019.08.19"]
[EventType "team-tourn"]
[EventCountry "ESP"]
[SourceTitle "playchess.com"]
[Source "ChessBase"]
[SourceQuality "1"]
[TimeControl "5400+30"]

1. d4 {[%emt 0:00:00]} d5 {[%emt 0:00:00]} 2. c4 {[%emt 0:00:52]} Nc6 {[%emt 0:00:07]} 3. cxd5 {[%emt 0:02:27]} Qxd5 {[%emt 0:00:09]} 4. Nf3 {[%emt 0:00:07]} e5 {[%emt 0:00:56]} 5. Nc3 {[%emt 0:00:15]} Bb4 {[%emt 0:00:16]} 6. a3 {[%emt 0:00:20]} Bxc3+ {[%emt 0:00:35]} 7. bxc3 {[%emt 0:00:02]} Bg4 {[%emt 0:06:16]} 8. Nxe5 {[%emt 0:18:19]} Nxe5 {[%emt 0:04:53]} 9. dxe5 {[%emt 0:01:16]} Qxe5 {[%emt 0:04:50]} 10. Qd4 {[%emt 0:00:14]} Qxd4 {[%emt 0:02:12]} 11. cxd4 {[%emt 0:00:05]} O-O-O {[%emt 0:00:47]} 12. Bb2 {[%emt 0:00:18]} f5 {[%emt 0:10:59]} 13. e3 {[%emt 0:08:04]} Ne7 {[%emt 0:03:20]} 14. Bd3 {[%emt 0:05:47]} Bh5 {[%emt 0:03:31]} 15. f3 {[%emt 0:09:32]} Rhe8 {[%emt 0:01:50]} 16. Kf2 {[%emt 0:00:15]} Bg6 {[%emt 0:00:47]} 17. Rhe1 {[%emt 0:05:13]} Nd5 {[%emt 0:01:04]} 18. g3 {[%emt 0:04:58]} Re6 {[%emt 0:02:20]} 19. Re2 {[%emt 0:03:48]} Rde8 {[%emt 0:05:34]} 20. Rae1 {[%emt 0:00:12]} Kd7 {[%emt 0:09:08]} 21. Bb5+ {[%emt 0:01:20]} c6 {[%emt 0:00:14]} 22. Bd3 {[%emt 0:01:44]} b5 {[%emt 0:04:02]} 23. Bc1 {[%emt 0:03:34]} Kc7 {[%emt 0:09:32]} 24. Rb2 {[%emt 0:07:19]} a6 {[%emt 0:03:48]} 25. Bd2 {[%emt 0:00:30]} Kb6 {[%emt 0:11:25]} 26. a4 {[%emt 0:02:39]} R8e7 {[%emt 0:01:23]} 27. h4 {[%emt 0:01:19]} h5 {[%emt 0:03:47]} 28. Bf1 {[%emt 0:01:10]} Rd6 {[%emt 0:01:05]} 29. Bd3 {[%emt 0:05:14]} Rde6 {[%emt 0:00:13]} 30. Bc4 {[%emt 0:02:41]} Rd6 {[%emt 0:00:17]} 31. Rc1 {[%emt 0:02:08]} Bf7 {[%emt 0:01:58]} 32. Bf1 {[%emt 0:00:57]} Rde6 {[%emt 0:00:45]} 33. Re1 {[%emt 0:00:31]} Re8 {[%emt 0:01:03]} 34. Bh3 {[%emt 0:00:18]} Rf6 {[%emt 0:01:34]} 35. Kg1 {[%emt 0:00:21]} Bg6 {[%emt 0:00:29]} 36. Ra2 {[%emt 0:03:29]} Rd6 {[%emt 0:01:27]} 37. Kf2 {[%emt 0:02:32]} Kb7 {[%emt 0:00:46]} 38. Rb2 {[%emt 0:01:46]} Nb6 {[%emt 0:00:26]} 39. axb5 {[%emt 0:00:39]} axb5 {[%emt 0:00:22]} 40. Rc1 {[%emt 0:00:21]} Ra8 {[%emt 0:00:26]} 41. Bb4 {[%emt 0:01:21]} Rdd8 {[%emt 0:00:35]} 42. Re1 {[%emt 0:03:06]} Ra4 {[%emt 0:00:46]} 43. Bc5 {[%emt 0:00:40]} Nc4 {[%emt 0:01:15]} 44. Rbe2 {[%emt 0:00:23]} Rda8 {[%emt 0:02:30]} 45. e4 {[%emt 0:00:09]} fxe4 {[%emt 0:00:22]} 46. fxe4 {[%emt 0:00:01]} Ra2 {[%emt 0:01:09]} 47. Kf3 {[%emt 0:01:37]} Nd2+ {[%emt 0:01:18]} 48. Kf4 {[%emt 0:00:16]} Re8 {[%emt 0:00:50]} 49. e5 {[%emt 0:00:19]} Bd3 {[%emt 0:00:28]} 50. Rf2 {[%emt 0:01:25]} Bc4 {[%emt 0:00:27]} 51. e6 {[%emt 0:00:38]} Nb1 {[%emt 0:00:43]} 52. Rxa2 {[%emt 0:00:09]} Bxa2 {[%emt 0:00:03]} 53. Bb4 {[%emt 0:00:37]} c5 {[%emt 0:00:48]} 54. dxc5 {[%emt 0:00:07]} Kc6 {[%emt 0:00:13]} 55. Ke5 {[%emt 0:00:28]} Re7 {[%emt 0:00:25]} 56. Bg2+ {[%emt 0:00:13]} Kc7 {[%emt 0:00:13]} 57. Bd5 {[%emt 0:00:09]} 1-0